fUST/lending_fUST_20251201
["ID","MTS","AMOUNT","RATE_DAILY","PERIOD"]
[395239454,1764563364231,-500.0,0.00010958,2]
[395239455,1764563364254,-670.01,0.00010958,2]
[395239456,1764563364279,-203.12248856,0.00010958,2]
[395239457,1764563364302,-500.0,0.00010958,2]
[395239458,1764563364327,-500.0,0.00010958,2]
[395239459,1764563364352,-500.0,0.00010958,2]
[395239460,1764563364378,-500.0,0.00010958,2]
[395239461,1764563364406,-500.0,0.00010958,2]
[395239462,1764563364429,-500.0,0.00010958,2]
[395239463,1764563364454,-500.0,0.00010958,2]
[395239464,1764563364478,-500.0,0.00010958,2]
[395239465,1764563364501,-500.0,0.00010958,2]
[395239466,1764563364527,-500.0,0.00010958,2]
[395239467,1764563364550,-500.0,0.00010958,2]
[395239468,1764563364572,-500.0,0.00010958,2]
[395239469,1764563364596,-500.0,0.00010958,2]
[395239470,1764563364619,-500.0,0.00010958,2]
[395239471,1764563364642,-500.0,0.00010958,2]
[395239472,1764563364666,-905.85,0.00010958,2]
[395239473,1764563364689,-500.0,0.00010958,2]
[395239474,1764563364712,-608.17118981,0.00010958,2]
[395239475,1764563364735,-316.82774861,0.00010958,2]
[395239476,1764563364758,-500.0,0.00010958,2]
[395239477,1764563364780,-644.36,0.00010958,2]
[395239478,1764563364803,-500.0,0.00010958,2]
[395239479,1764563364825,-398.25499546,0.00010958,2]
[395239480,1764563364848,-500.0,0.00010958,2]
[395239481,1764563364872,-651.18,0.00010958,2]
[395239482,1764563364897,-594.24,0.00010958,2]
[395239483,1764563364922,-602.99,0.00010958,2]
[395239484,1764563364946,-500.0,0.00010958,2]
[395239485,1764563364968,-500.0,0.00010958,2]
[395239486,1764563364992,-500.0,0.00010958,2]
[395239487,1764563365016,-500.0,0.00010958,2]
[395239488,1764563365038,-723.91,0.00010958,2]
[395239489,1764563365061,-596.62,0.00010958,2]
[395239490,1764563365084,-1618.36,0.00010958,2]
[395239491,1764563365106,-553.72,0.00010958,2]
[395239492,1764563365129,-500.0,0.00010958,2]
[395239493,1764563365152,-500.0,0.00010958,2]
[395239494,1764563365176,-500.0,0.00010958,2]
[395239495,1764563365200,-776.09,0.00010958,2]
[395239496,1764563365224,-381.863482,0.00010958,2]
[395239497,1764563365247,-500.0,0.00010958,2]
[395239498,1764563365271,-381.863482,0.00010958,2]
[395239499,1764563365295,-381.863482,0.00010958,2]
[395239500,1764563365318,-381.863482,0.00010958,2]
[395239501,1764563365342,-381.863482,0.00010958,2]
[395239502,1764563365366,-381.863482,0.00010958,2]
[395239503,1764563365391,-381.863482,0.00010958,2]
[395239504,1764563365417,-381.863482,0.00010958,2]
[395239505,1764563365441,-500.0,0.00010958,2]
[395239506,1764563365464,-502.37233236,0.00010958,2]
[395239507,1764563365489,-500.0,0.00010958,2]
[395239508,1764563365861,-500.0,0.00010958,2]
[395239509,1764563365883,-500.0,0.00010958,2]
[395239510,1764563365904,-500.0,0.00010958,2]
[395239511,1764563365925,-500.0,0.00010958,2]
[395239512,1764563365946,-665.15,0.00010958,2]
[395239513,1764563365967,-335.79108344,0.00010958,2]
[395239514,1764563365988,-500.0,0.00010958,2]
[395239515,1764563366009,-500.0,0.00010958,2]
[395239516,1764563366030,-507.75534326,0.00010958,2]
[395239517,1764563366050,-500.0,0.00010958,2]
[395239518,1764563366069,-582.35,0.00010958,2]
[395239519,1764563366089,-576.66,0.00010958,2]
[395239520,1764563366109,-500.0,0.00010958,2]
[395239521,1764563366129,-500.0,0.00010958,2]
[395239522,1764563366149,-500.0,0.00010958,2]
[395239523,1764563366170,-502.70192236,0.00010958,2]
[395239524,1764563366191,-500.0,0.00010958,2]
[395239525,1764563366213,-718.28,0.00010958,2]
[395239526,1764563366235,-500.0,0.00010958,2]
[395239527,1764563366256,-1668.67,0.00010958,2]
[395239528,1764563366276,-506.31298446,0.00010958,2]
[395239529,1764563366298,-500.0,0.00010958,2]
[395239530,1764563366320,-1759.24,0.00010958,2]
[395239531,1764563366341,-641.99,0.00010958,2]
[395239532,1764563366362,-500.0,0.00010958,2]
[395239533,1764563366383,-500.0,0.00010958,2]
[395239534,1764563366409,-887.79,0.00010958,2]
[395239535,1764563366431,-500.0,0.00010958,2]
[395239536,1764563366454,-600.12,0.00010958,2]
[395239537,1764563366479,-500.0,0.00010958,2]
[395239538,1764563366501,-937.15,0.00010958,2]
[395239539,1764563366521,-500.0,0.00010958,2]
[395239540,1764563366542,-457.93399329,0.00010958,2]
[395239541,1764563368955,10000.0,0.0001,90]
[395239542,1764563377378,10000.0,0.0001,60]
[395239543,1764563385140,10000.0,0.0002,30]
[395239613,1764563438367,10000.0,0.0002,30]
[395239617,1764563438398,-313.91958735,9.104e-05,2]
[395239619,1764563438412,-225.0,9.104e-05,2]
[395239621,1764563438422,-300.0,0.00010957,2]
[395239623,1764563438431,-210.55978494,0.00010957,2]
[395239625,1764563438441,-114.89600671,0.00010958,2]
[395239627,1764563438452,-500.0,0.00010958,2]
[395239629,1764563438461,-500.0,0.00010958,2]
[395239631,1764563438470,-500.0,0.00010958,2]
[395239633,1764563438481,-500.0,0.00010958,2]
[395239635,1764563438491,-675.7,0.00010958,2]
[395239636,1764563438501,-500.0,0.00010958,2]
[395239637,1764563438510,-500.0,0.00010958,2]
[395239638,1764563438519,-500.0,0.00010958,2]
[395239639,1764563438528,-500.0,0.00010958,2]
[395239640,1764563438537,-500.0,0.00010958,2]
[395239641,1764563438546,-500.0,0.00010958,2]
[395239642,1764563438555,-593.27,0.00010958,2]
[395239643,1764563438565,-500.341809,0.00010958,2]
[395239644,1764563438574,-602.05,0.00010958,2]
[395239645,1764563438583,-500.0,0.00010958,2]
[395239646,1764563438591,-707.55,0.00010958,2]
[395239647,1764563438600,-824.02,0.00010958,2]
[395239648,1764563438610,-500.0,0.00010958,2]
[395239649,1764563438619,-500.0,0.00010958,2]
[395239650,1764563438628,-604.03,0.00010958,2]
[395239651,1764563438637,-1070.66,0.00010958,2]
[395239652,1764563438646,-500.0,0.00010958,2]
[395239653,1764563438655,-555.33,0.00010958,2]
[395239654,1764563438664,-500.0,0.00010958,2]
[395239655,1764563438672,-500.0,0.00010958,2]
[395239656,1764563438682,-661.07,0.00010958,2]
[395239657,1764563438690,-500.0,0.00010958,2]
[395239658,1764563438699,-500.0,0.00010958,2]
[395239659,1764563438708,-500.0,0.00010958,2]
[395239660,1764563438719,-918.03,0.00010958,2]
[395239661,1764563438728,-1225.29,0.00010958,2]
[395239662,1764563438737,-500.0,0.00010958,2]
[395239663,1764563438746,-432.16818445,0.00010958,2]
[395239664,1764563438755,-500.0,0.00010958,2]
[395239665,1764563438764,-279.66292115,0.00010958,2]
[395239666,1764563438773,-500.0,0.00010958,2]
[395239667,1764563438782,-500.0,0.00010958,2]
[395239668,1764563438791,-873.67,0.00010958,2]
[395239669,1764563438800,-1908.94,0.00010958,2]
[395239670,1764563438809,-1550.0,0.00010958,2]
[395239672,1764563438818,-642.5,0.00010958,2]
[395239673,1764563438827,-500.0,0.00010958,2]
[395239674,1764563438837,-500.0,0.00010958,2]
[395239676,1764563438847,-454.0,0.00010958,2]
[395239678,1764563438856,-500.72428405,0.00010958,2]
[395239680,1764563438866,-500.0,0.00010958,2]
[395239682,1764563438875,-500.0,0.00010958,2]
[395239684,1764563438885,-500.0,0.00010958,2]
[395239686,1764563438894,-870.21,0.00010958,2]
[395239688,1764563438904,-550.39,0.00010958,2]
[395239690,1764563438913,-199.42951541,0.00010958,2]
[395239692,1764563438922,-649.52,0.00010958,2]
[395239694,1764563438931,-500.0,0.00010958,2]
[395239696,1764563438941,-500.0,0.00010958,2]
[395239698,1764563438950,-1291.83,0.00010958,2]
[395239700,1764563438959,-885.64,0.00010958,2]
[395239702,1764563438970,-500.0,0.00010958,2]
[395239704,1764563438980,-500.0,0.00010958,2]
[395239706,1764563438989,-502.56476209,0.00010958,2]
[395239708,1764563438998,-500.0,0.00010958,2]
[395239710,1764563439007,-681.28,0.00010958,2]
[395239712,1764563439017,-500.0,0.00010958,2]
[395239714,1764563439027,-1280.01,0.00010958,2]
[395239716,1764563439036,-2822.39,0.00010958,2]
[395239718,1764563439045,-500.0,0.00010958,2]
[395239720,1764563439054,-500.0,0.00010958,2]
[395239722,1764563439064,-500.0,0.00010958,2]
[395239725,1764563439073,-500.0,0.00010958,2]
[395239726,1764563439082,-500.0,0.00010958,2]
[395239728,1764563439092,-237.25050308,0.00010958,2]
[395239730,1764563439102,-500.0,0.00010958,2]
[395239732,1764563439111,-500.0,0.00010958,2]
[395239734,1764563439121,-500.0,0.00010958,2]
[395239736,1764563439131,-500.0,0.00010958,2]
[395239738,1764563439141,-500.0,0.00010958,2]
[395239740,1764563439152,-500.0,0.00010958,2]
[395239742,1764563439163,-728.17,0.00010958,2]
[395239744,1764563439172,-500.0,0.00010958,2]
[395239747,1764563439182,-500.0,0.00010958,2]
[395239749,1764563439191,-1578.74,0.00010958,2]
[395239750,1764563439202,-594.42998334,0.00010958,2]
[395239752,1764563439211,-500.0,0.00010958,2]
[395239755,1764563439221,-500.0,0.00010958,2]
[395239756,1764563439231,-500.0,0.00010958,2]
[395239758,1764563439240,-500.0,0.00010958,2]
[395239761,1764563439250,-151.0,0.00010958,2]
[395239762,1764563439260,-151.0,0.00010958,2]
[395239764,1764563439270,-500.0,0.00010958,2]
[395239766,1764563439279,-797.52,0.00010958,2]
[395239768,1764563439290,-500.0,0.00010958,2]
[395239770,1764563439299,-1121.95,0.00010958,2]
[395239773,1764563439309,-500.0,0.00010958,2]
[395239774,1764563439318,-725.61,0.00010958,2]
[395239776,1764563439328,-500.0,0.00010958,2]
[395239779,1764563439338,-500.0,0.00010958,2]
[395239781,1764563439347,-664.36,0.00010958,2]
[395239782,1764563439356,-1773.72,0.00010958,2]
[395239785,1764563439366,-500.0,0.00010958,2]
[395239787,1764563439377,-500.0,0.00010958,2]
[395239788,1764563439386,-500.0,0.00010958,2]
[395239790,1764563439395,-500.0,0.00010958,2]
[395239792,1764563439406,-500.0,0.00010958,2]
[395239794,1764563439416,-1622.91,0.00010958,2]
[395239797,1764563439425,-500.0,0.00010958,2]
[395239799,1764563439435,-518.85,0.00010958,2]
[395239801,1764563439443,-648.43,0.00010958,2]
[395239802,1764563439454,-547.33,0.00010958,2]
[395239804,1764563439463,-500.0,0.00010958,2]
[395239807,1764563439473,-500.0,0.00010958,2]
[395239809,1764563439483,-791.87,0.00010958,2]
[395239810,1764563439495,-1493.82,0.00010958,2]
[395239812,1764563439505,-500.0,0.00010958,2]
[395239814,1764563439514,-506.54817904,0.00010958,2]
[395239816,1764563439523,-500.0,0.00010958,2]
[395239818,1764563439533,-502.9862973,0.00010958,2]
[395239820,1764563439542,-2472.32,0.00010958,2]
[395239822,1764563439551,-500.0,0.00010958,2]
[395239824,1764563439560,-500.0,0.00010958,2]
[395239826,1764563439569,-500.0,0.00010958,2]
[395239828,1764563439578,-921.16,0.00010958,2]
[395239830,1764563439587,-234.56525557,0.00010958,2]
[395239832,1764563439596,-540.94,0.00010958,2]
[395239834,1764563439605,-1127.1,0.00010958,2]
[395239836,1764563439614,-500.0,0.00010958,2]
[395239838,1764563439623,-500.0,0.00010958,2]
[395239840,1764563439633,-500.0,0.00010958,2]
[395239842,1764563439642,-172.820313,0.00010958,2]
[395239844,1764563439651,-500.0,0.00010958,2]
[395239846,1764563439661,-500.0,0.00010958,2]
[395239848,1764563439670,-763.95,0.00010958,2]
[395239850,1764563439679,-500.0,0.00010958,2]
[395239852,1764563439688,-500.0,0.00010958,2]
[395239854,1764563439697,-500.0,0.00010958,2]
[395239856,1764563439706,-500.0,0.00010958,2]
[395239858,1764563439715,-500.0,0.00010958,2]
[395239860,1764563439724,-740.32,0.00010958,2]
[395239862,1764563439736,-500.0,0.00010958,2]
[395239864,1764563439745,-662.97,0.00010958,2]
[395239866,1764563439755,-500.0,0.00010958,2]
[395239868,1764563439764,-2702.12,0.00010958,2]
[395239870,1764563439773,-500.0,0.00010958,2]
[395239872,1764563439783,-500.0,0.00010958,2]
[395239874,1764563439791,-500.0,0.00010958,2]
[395239876,1764563439800,-500.0,0.00010958,2]
[395239878,1764563439809,-505.07,0.00010958,2]
[395239880,1764563439818,-500.0,0.00010958,2]
[395239882,1764563439827,-1054.83,0.00010958,2]
[395239884,1764563439836,-468.28029209,0.00010958,2]
[395239886,1764563439845,-13757.42,0.00010958,2]
[395239888,1764563439854,-2648.46,0.00010958,2]
[395239890,1764563439863,-669.98,0.00010958,2]
[395239892,1764563439873,-5657.900972,0.00010958,2]
[395239894,1764563439882,-500.0,0.00010958,2]
[395239896,1764563439891,-598.34,0.00010958,2]
[395239898,1764563439900,-500.0,0.00010958,2]
[395239900,1764563439910,-500.0,0.00010958,2]
[395239902,1764563439919,-500.0,0.00010958,2]
[395239904,1764563439928,-595.46,0.00010958,2]
[395239906,1764563439938,-630.89155732,0.00010958,2]
[395239908,1764563439947,-548.36,0.00010958,2]
[395239910,1764563439957,-741.01,0.00010958,2]
[395239912,1764563439967,-500.0,0.00010958,2]
[395239915,1764563439978,-1232.01,0.00010958,2]
[395239916,1764563439987,-671.52,0.00010958,2]
[395239919,1764563439996,-4733.93,0.00010958,2]
[395239921,1764563440005,-860.58,0.00010958,2]
[395239923,1764563440014,-758.54,0.00010958,2]
[395239926,1764563440025,-517.77,0.00010958,2]
[395239929,1764563440034,-500.0,0.00010958,2]
[395239931,1764563440043,-500.0,0.00010958,2]
[395239934,1764563440052,-2987.56,0.00010958,2]
[395239938,1764563440062,-2806.72,0.00010958,2]
[395239940,1764563440071,-360.53472005,0.00010958,2]
[395239941,1764563440080,-1319.44,0.00010958,2]
[395239943,1764563440089,-500.59116654,0.00010958,2]
[395239945,1764563440098,-500.0,0.00010958,2]
[395239947,1764563440107,-500.0,0.00010958,2]
[395239949,1764563440116,-500.0,0.00010958,2]
[395239951,1764563440125,-550.12,0.00010958,2]
[395239953,1764563440134,-500.0,0.00010958,2]
[395239955,1764563440143,-1479.56,0.00010958,2]
[395239957,1764563440153,-819.98,0.00010958,2]
[395239959,1764563440162,-1726.91,0.00010958,2]
[395239961,1764563440172,-501.98966571,0.00010958,2]
[395239964,1764563440182,-500.0,0.00010958,2]
[395239966,1764563440191,-506.08662147,0.00010958,2]
[395239967,1764563440200,-2577.72,0.00010958,2]
[395239970,1764563440210,-1632.3,0.00010958,2]
[395239972,1764563440219,-2543.42,0.00010958,2]
[395239974,1764563440229,-500.0,0.00010958,2]
[395239975,1764563440238,-500.0,0.00010958,2]
[395239977,1764563440247,-501.56672257,0.00010958,2]
[395239980,1764563440257,-500.0,0.00010958,2]
[395239982,1764563440268,-151.0,0.00010958,2]
[395239984,1764563440277,-500.0,0.00010958,2]
[395239985,1764563440286,-500.0,0.00010958,2]
[395239988,1764563440295,-1900.86,0.00010958,2]
[395239989,1764563440304,-536.89,0.00010958,2]
[395239992,1764563440314,-500.0,0.00010958,2]
[395239994,1764563440323,-500.0,0.00010958,2]
[395239996,1764563440333,-1523.72,0.00010958,2]
[395239998,1764563440343,-679.77,0.00010958,2]
[395240000,1764563440354,-1866.36,0.00010958,2]
[395240002,1764563440363,-833.15,0.00010958,2]
[395240004,1764563440372,-502.5227902,0.00010958,2]
[395240006,1764563440382,-500.0,0.00010958,2]
[395240008,1764563440391,-500.0,0.00010958,2]
[395240010,1764563440401,-5011.5,0.00010958,2]
[395240012,1764563440412,-759.24,0.00010958,2]
[395240014,1764563440432,-1390.55,0.00010958,2]
[395240016,1764563440441,-678.86,0.00010958,2]
[395240018,1764563440450,-500.0,0.00010958,2]
[395240020,1764563440459,-500.0,0.00010958,2]
[395240022,1764563440468,-500.0,0.00010958,2]
[395240024,1764563440477,-2142.12,0.00010958,2]
[395240026,1764563440487,-500.0,0.00010958,2]
[395240028,1764563440496,-501.99420519,0.00010958,2]
[395240030,1764563440505,-3087.47,0.00010958,2]
[395240032,1764563440514,-558.68,0.00010958,2]
[395240034,1764563440523,-502.74859428,0.00010958,2]
[395240035,1764563440532,-1922.72,0.00010958,2]
[395240038,1764563440542,-533.09,0.00010958,2]
[395240040,1764563440551,-500.0,0.00010958,2]
[395240042,1764563440560,-500.0,0.00010958,2]
[395240043,1764563440569,-500.0,0.00010958,2]
[395240045,1764563440578,-969.85,0.00010958,2]
[395240047,1764563440587,-918.33,0.00010958,2]
[395240049,1764563440596,-2849.68,0.00010958,2]
[395240051,1764563440605,-245.89615339,0.00010958,2]
[395240053,1764563440614,-500.0,0.00010958,2]
[395240055,1764563440623,-246.01381129,0.00010958,2]
[395240057,1764563440632,-2321.42,0.00010958,2]
[395240059,1764563440641,-251.3280106,0.00010958,2]
[395240061,1764563440650,-501.90967569,0.00010958,2]
[395240063,1764563440659,-2274.38,0.00010958,2]
[395240065,1764563440669,-678.11,0.00010958,2]
[395240067,1764563440678,-3198.73431852,0.00010958,2]
[395240137,1764563441300,-177.86568148,0.00010958,2]
[395240139,1764563441309,-733.20931852,0.00010958,2]
[395240144,1764563441344,-117.24068148,0.00010958,2]
[395240146,1764563441354,-648.17,0.00010958,2]
[395240148,1764563441363,-500.0,0.00010958,2]
[395240150,1764563441372,-2157.65,0.00010958,2]
[395240152,1764563441381,-966.23823539,0.00010958,2]
[395240447,1764563444339,-1924.34176461,0.00010958,2]
[395240449,1764563444349,-1311.74,0.00010958,2]
[395240451,1764563444358,-3309.02,0.00010958,2]
[395240453,1764563444367,-500.0,0.00010958,2]
[395240455,1764563444376,-1122.64,0.00010958,2]
[395240457,1764563444385,-585.52,0.00010958,2]
[395240459,1764563444394,-6247.68,0.00010958,2]
[395240461,1764563444404,-593.66,0.00010958,2]
[395240463,1764563444420,-500.0,0.00010958,2]
[395240465,1764563444429,-940.94,0.00010958,2]
[395240467,1764563444437,-563.46526539,0.00010958,2]
[395240676,1764563446449,-104.29473461,0.00010958,2]
[395240678,1764563446459,-502.90740032,0.00010958,2]
[395240680,1764563446469,-695.27,0.00010958,2]
[395240682,1764563446478,-297.7095039,0.00010958,2]
[395240790,1764563447474,-202.2904961,0.00010958,2]
[395240792,1764563447483,-500.0,0.00010958,2]
[395240794,1764563447494,-242.3895039,0.00010958,2]
[395240797,1764563447515,-257.6104961,0.00010958,2]
[395240799,1764563447523,-530.65,0.00010958,2]
[395240801,1764563447533,-500.0,0.00010958,2]
[395240803,1764563447542,-500.0,0.00010958,2]
[395240805,1764563447550,-621.32683792,0.00010958,2]
[395240807,1764563447559,-331.55196681,0.00010958,2]
[395241428,1764564288279,456.72,0.0002,30]
[395241451,1764564632362,-255.34516983,9.104e-05,2]
[395241453,1764564632372,-79.11406073,9.104e-05,2]
[395241456,1764564632382,-145.88593927,9.104e-05,2]
[395241458,1764564632391,-167.44012932,9.214e-05,2]
[395241460,1764564632400,-2160.9231391,0.00010596,2]
[395241462,1764564632409,-183.163,0.00010641,2]
[395241463,1764564632418,-2160.9231391,0.00010829,2]
[395241465,1764564632427,-3143.59584074,0.00010848,2]
[395241467,1764564632436,-252.86849643,0.00010852,2]
[395241469,1764564632445,-151.0,0.00010852,2]
[395241472,1764564632454,-231.28369723,0.00010852,2]
[395241475,1764564632463,-1200.0,0.00010854,2]
[395241477,1764564632472,-300.0,0.00010855,2]
[395241479,1764564632481,-300.0,0.00010855,2]
[395241480,1764564632490,-50000.0,0.00010856,2]
[395241482,1764564632500,-17011.11794797,0.00010858,2]
[395241483,1764564632511,-807.30084617,0.00010858,2]
[395241484,1764564632525,-146139.10049309,0.00010858,2]
[395241485,1764564638801,-211.25694489,0.00010855,2]
[395241486,1764564638814,-212.34629112,0.00010855,2]
[395241487,1764564638823,-39.39676399,0.00010858,2]
[395241540,1764564640695,-2500.010595,0.00010858,2]
[395243086,1764565832562,-353.11683798,9.104e-05,2]
[395243087,1764565832572,-225.0,9.104e-05,2]
[395243088,1764565832581,-167.63132673,9.824e-05,2]
[395243089,1764565832591,-291.245,0.00010543,2]
[395243090,1764565832601,-175.14627501,0.00010727,2]
[395243091,1764565832610,-300.0,0.00010749,2]
[395243093,1764565832619,-1200.0,0.00010749,2]
[395243095,1764565832628,-525.91512609,0.00010749,2]
[395243097,1764565832637,-1200.0,0.0001075,2]
[395243099,1764565832646,-37636.06164387,0.0001075,2]
[395243101,1764565832657,-12363.93835613,0.0001075,2]
[395243103,1764565832667,-518.86910132,0.00010752,2]
[395243104,1764565832676,-500.0,0.00010752,2]
[395243105,1764565832685,-516.90213478,0.00010752,2]
[395243106,1764565832694,-151.0,0.00010752,2]
[395243107,1764565832704,-177.24754065,0.00010752,2]
[395243108,1764565832713,-535.30737566,0.00010752,2]
[395243109,1764565832723,-500.0,0.00010752,2]
[395243110,1764565832733,-500.0,0.00010752,2]
[395243111,1764565832742,-500.0,0.00010752,2]
[395243112,1764565832751,-500.0,0.00010752,2]
[395243113,1764565832760,-500.0,0.00010752,2]
[395243114,1764565832770,-500.0,0.00010752,2]
[395243115,1764565832779,-500.0,0.00010752,2]
[395243116,1764565832788,-500.0,0.00010752,2]
[395243117,1764565832797,-517.58503847,0.00010752,2]
[395243118,1764565832807,-500.0,0.00010752,2]
[395243119,1764565832816,-500.0,0.00010752,2]
[395243120,1764565832825,-500.0,0.00010752,2]
[395243121,1764565832835,-500.0,0.00010752,2]
[395243122,1764565832846,-500.0,0.00010752,2]
[395243123,1764565832855,-500.0,0.00010752,2]
[395243124,1764565832864,-231.28369723,0.00010752,2]
[395243125,1764565832874,-500.0,0.00010752,2]
[395243126,1764565832883,-500.0,0.00010752,2]
[395243127,1764565832893,-500.0,0.00010752,2]
[395243128,1764565832902,-500.0,0.00010752,2]
[395243129,1764565832911,-107247.33746202,0.00010758,2]
[395243130,1764565832976,-113416.98553155,0.00010758,2]
[395243203,1764565839236,-343.48819371,0.00010749,2]
[395243206,1764565839254,-156.51180629,0.00010749,2]
[395243208,1764565839264,-544.05738795,0.00010749,2]
[395243210,1764565839273,-409.86210964,0.00010749,2]
[395243212,1764565839282,-500.0,0.00010749,2]
[395243214,1764565839291,-500.0,0.00010749,2]
[395243216,1764565839300,-500.0,0.00010749,2]
[395243218,1764565839309,-500.0,0.00010749,2]
[395243220,1764565839318,-225.014723,0.00010749,2]
[395243222,1764565839329,-159.33386189,0.00010749,2]
[395243224,1764565839339,-669335.67700643,0.00010758,2]
[395243226,1764565839348,-353.71323156,0.00010827,2]
[395243228,1764565839357,-1380.065865,0.00010855,2]
[395243230,1764565839366,-333.0,0.00010858,2]
[395243232,1764565839375,-333.0,0.00010858,2]
[395243234,1764565839385,-333.0,0.00010858,2]
[395243236,1764565839394,-10000.0,0.00010858,2]
[395243238,1764565839403,-8555.598342,0.00010958,2]
[395243240,1764565839412,-500.0,0.00010958,2]
[395243242,1764565839421,-500.0,0.00010958,2]
[395243244,1764565839430,-500.0,0.00010958,2]
[395243246,1764565839439,-500.0,0.00010958,2]
[395243248,1764565839448,-500.0,0.00010958,2]
[395243250,1764565839456,-500.0,0.00010958,2]
[395243252,1764565839465,-500.0,0.00010958,2]
[395243254,1764565839475,-500.0,0.00010958,2]
[395243256,1764565839485,-1640.8,0.00010958,2]
[395243258,1764565839494,-500.0,0.00010958,2]
[395243260,1764565839503,-834.49,0.00010958,2]
[395243262,1764565839511,-500.0,0.00010958,2]
[395243264,1764565839520,-500.0,0.00010958,2]
[395243265,1764565839530,-587.03,0.00010958,2]
[395243267,1764565839539,-962.59,0.00010958,2]
[395243269,1764565839548,-500.0,0.00010958,2]
[395243270,1764565839557,-500.0,0.00010958,2]
[395243272,1764565839566,-500.0,0.00010958,2]
[395243274,1764565839575,-500.0,0.00010958,2]
[395243276,1764565839584,-154.176637,0.00010958,2]
[395243278,1764565839593,-708.59,0.00010958,2]
[395243280,1764565839602,-151.0,0.00010958,2]
[395243282,1764565839611,-151.0,0.00010958,2]
[395243284,1764565839620,-151.0,0.00010958,2]
[395243286,1764565839629,-585.0,0.00010958,2]
[395243288,1764565839638,-151.0,0.00010958,2]
[395243290,1764565839647,-151.0,0.00010958,2]
[395243292,1764565839656,-151.0,0.00010958,2]
[395243293,1764565839665,-151.0,0.00010958,2]
[395243295,1764565839674,-151.0,0.00010958,2]
[395243297,1764565839684,-151.0,0.00010958,2]
[395243299,1764565839693,-151.0,0.00010958,2]
[395243301,1764565839703,-151.0,0.00010958,2]
[395243303,1764565839713,-151.0,0.00010958,2]
[395243305,1764565839721,-580.9,0.00010958,2]
[395243307,1764565839730,-151.0,0.00010958,2]
[395243309,1764565839739,-151.0,0.00010958,2]
[395243311,1764565839748,-151.0,0.00010958,2]
[395243313,1764565839759,-151.0,0.00010958,2]
[395243315,1764565839768,-151.0,0.00010958,2]
[395243317,1764565839777,-162.768226,0.00010958,2]
[395243319,1764565839787,-500.0,0.00010958,2]
[395243321,1764565839797,-154.686138,0.00010958,2]
[395243323,1764565839807,-154.686138,0.00010958,2]
[395243324,1764565839821,-154.686138,0.00010958,2]
[395243326,1764565839830,-154.686138,0.00010958,2]
[395243328,1764565839839,-154.686138,0.00010958,2]
[395243330,1764565839849,-154.686138,0.00010958,2]
[395243332,1764565839860,-154.686138,0.00010958,2]
[395243334,1764565839869,-500.0,0.00010958,2]
[395243336,1764565839878,-154.686138,0.00010958,2]
[395243338,1764565839888,-154.686138,0.00010958,2]
[395243340,1764565839897,-154.686138,0.00010958,2]
[395243342,1764565839906,-154.686138,0.00010958,2]
[395243344,1764565839915,-154.686138,0.00010958,2]
[395243346,1764565839924,-154.686138,0.00010958,2]